bitfinex-derivatives/quotes_ETHF0:USTF0_20250908
["timestamp","ask_amount","ask_price","bid_price","bid_amount"]
[1757345488539,5.33526,4381.0,4380.0,0.2668]
[1757345488838,0.4315,4380.3,4380.2,1.424]
[1757345489032,3.2078,4380.7,4380.3,0.6098]
[1757345489338,0.238,4380.8,4380.7,0.8142]
[1757345489527,0.238,4380.8,4380.7,1.424]
[1757345489732,0.238,4381.1,4381.0,1.081]
[1757345489935,0.6695,4381.1,4381.0,1.6908]
[1757345491135,3.2078,4381.3,4381.0,1.6908]
[1757345491341,0.4315,4381.2,4381.1,1.424]
[1757345491641,3.2078,4381.3,4381.2,0.6098]
[1757345491938,3.2078,4381.3,4381.2,1.424]
[1757345492341,3.6393,4381.3,4381.2,1.424]
[1757345493133,3.2078,4381.3,4381.2,1.424]
[1757345493329,3.2078,4381.8,4381.5,0.2668]
[1757345493536,3.2078,4381.8,4381.7,1.424]
[1757345494443,0.238,4382.0,4381.7,1.424]
[1757345494444,0.238,4382.0,4381.8,0.6098]
[1757345494741,0.869,4381.9,4381.8,0.8142]
[1757345494940,0.869,4381.9,4381.8,1.424]
[1757345495140,1.5324,4381.9,4381.8,1.424]
[1757345495837,1.5324,4381.9,4381.5,0.2668]
[1757345496039,0.6193,4381.8,4381.6,0.6072]
[1757345496241,1.4438,4381.7,4381.6,1.0194]
[1757345496548,1.4438,4381.7,4381.6,1.4369]
[1757345496549,0.8245,4381.7,4381.6,1.4369]
[1757345496739,1.4438,4381.7,4381.6,1.4369]
[1757345496946,1.4438,4381.7,4381.6,1.0194]
[1757345497544,0.8245,4381.7,4381.6,1.4369]
[1757345497936,1.4438,4381.7,4381.6,1.4369]
[1757345498144,0.8245,4381.7,4381.6,1.4369]
[1757345498644,0.6193,4382.1,4381.6,1.4369]
[1757345498839,1.0615,4382.0,4381.9,0.8297]
[1757345499039,1.0615,4382.0,4381.9,1.4369]
[1757345499242,1.6808,4382.0,4381.9,1.4369]
[1757345499645,1.0615,4382.0,4381.9,1.4369]
[1757345500540,1.6808,4382.0,4381.6,0.6072]
[1757345500747,1.4438,4381.7,4381.6,1.0194]
[1757345500940,0.8245,4381.7,4381.6,1.7142476]
[1757345502150,0.237,4382.0,4381.6,1.1070476]
[1757345502350,4.0323,4382.3,4382.2,1.4369]
[1757345502541,4.80097895,4382.3,4382.2,1.4369]
[1757345502847,4.2693,4382.3,4382.2,1.71414845]
[1757345503050,4.8886,4382.3,4382.2,1.71414845]
[1757345503250,4.0323,4382.3,4382.2,1.71414845]
[1757345503546,4.6516,4383.0,4382.9,1.0194]
[1757345503747,5.42041411,4383.0,4382.9,1.0194]
[1757345505050,0.4171,4382.6,4382.5,1.0815]
[1757345505249,0.4171,4382.6,4382.5,1.96593249]
[1757345505850,0.8245,4382.6,4382.5,1.96593249]
[1757345507552,1.35603824,4382.6,4382.5,1.96593249]
[1757345507848,1.35603824,4382.6,4382.5,1.6887]
[1757345508743,0.53153824,4382.6,4382.5,1.6887]
[1757345509647,0.94863824,4382.6,4382.5,1.6887]
[1757345509850,1.35603824,4382.6,4382.5,1.6887]
[1757345510149,0.94863824,4382.6,4382.5,1.6887]
[1757345510750,0.4171,4382.6,4382.5,1.6887]
[1757345511550,3.2078,4383.0,4382.9,1.4369]
[1757345511751,3.7390778,4383.0,4382.9,1.4369]
[1757345511954,3.6249,4383.0,4382.9,1.4369]
[1757345512154,4.0323,4383.0,4382.9,1.4369]
[1757345513649,4.6516,4383.0,4382.9,1.4369]
[1757345514554,4.0323,4383.0,4382.9,1.4369]
[1757345514853,3.2078,4383.0,4382.9,1.4369]
[1757345515154,0.6541,4383.1,4383.0,1.6887]
[1757345516052,1.6808,4383.1,4383.0,1.6887]
[1757345519150,1.6808,4383.1,4382.6,0.6072]
[1757345519356,0.237,4383.1,4382.6,0.6072]
[1757345519651,0.237,4383.1,4382.6,1.4369]
[1757345519652,0.4171,4382.7,4382.6,1.4369]
[1757345520155,0.8245,4382.7,4382.6,1.4369]
[1757345520754,0.237,4383.1,4382.6,1.4369]
[1757345521057,0.6541,4383.1,4383.0,1.6887]
[1757345521559,0.4171,4383.1,4383.0,1.6887]
[1757345522156,0.237,4383.3,4383.1,0.6072]
[1757345522362,0.6541,4383.3,4383.2,1.4369]
[1757345522858,0.4171,4383.3,4383.2,0.8297]
[1757345523057,0.8245,4383.3,4383.2,0.8297]
[1757345523260,3.4448,4383.5,4383.3,0.6072]
[1757345523261,3.2078,4383.5,4383.3,0.6072]
[1757345523450,0.6193,4384.0,4383.9,0.8297]
[1757345523451,3.6249,4384.0,4383.9,0.8297]
[1757345523658,3.6249,4384.0,4383.9,1.4369]
[1757345524157,3.2078,4384.0,4383.9,1.4369]
[1757345524364,3.6249,4384.0,4383.9,1.4369]
[1757345524663,3.2078,4384.0,4383.9,1.4369]
[1757345525361,3.6249,4384.0,4383.9,1.4369]
[1757345526263,3.2078,4384.0,4383.9,1.4369]
[1757345526569,3.6129,4384.0,4383.9,1.4369]
[1757345527566,4.6337,4384.0,4383.9,1.4369]
[1757345527861,4.6337,4384.0,4383.6,0.6091]
[1757345527862,4.027,4384.0,4383.6,0.6091]
[1757345528062,0.8192,4383.6,4383.5,1.6734]
[1757345528363,0.8192,4383.3,4383.2,0.6091]
[1757345528566,1.4259,4383.2,4382.5,0.2518]
[1757345528760,1.6629,4383.2,4382.6,0.6091]
[1757345528957,1.0562,4383.2,4382.0,3.4596]
[1757345529163,0.8192,4382.1,4382.0,1.6734]
[1757345529359,1.4259,4382.1,4382.0,1.6734]
[1757345529666,0.6067,4382.0,4381.5,4.0653]
[1757345529857,1.4259,4381.6,4381.5,1.026]
[1757345530058,1.4259,4381.2,4381.1,1.026]
[1757345530256,1.4259,4381.2,4380.6,0.6091]
[1757345530457,1.4259,4381.2,4380.7,0.6091]
[1757345530458,0.8192,4381.2,4380.7,0.6091]
[1757345530665,0.4051,4380.8,4380.7,1.4216]
[1757345531068,0.6067,4381.2,4380.8,0.6091]
[1757345531261,1.4259,4381.2,4381.1,1.026]
[1757345531460,1.4259,4381.2,4381.1,1.4216]
[1757345531662,1.4259,4381.2,4381.1,0.16894338]
[1757345532260,1.4259,4381.2,4381.1,1.19494338]
[1757345533162,1.4259,4381.2,4381.1,0.16894338]
[1757345535773,5.4259,4381.2,4381.1,0.16894338]
[1757345541082,5.6629,4381.2,4381.1,0.16853481]
[1757345541873,5.6629,4381.2,4380.1,0.6091]
[1757345542183,1.6629,4381.2,4380.1,0.6091]
[1757345542568,0.237,4381.1,4381.0,0.4169]
[1757345542774,1.6629,4381.1,4380.8,0.6091]
[1757345542973,0.4051,4380.7,4380.6,0.8125]
[1757345543280,0.6421,4380.7,4380.6,1.4216]
[1757345545878,1.6629,4380.7,4380.6,1.4216]
[1757345546069,1.0562,4380.7,4380.6,1.4216]
[1757345546377,3.2078,4381.3,4381.0,0.2484]
[1757345546585,0.8192,4381.1,4381.0,1.67]
[1757345547580,1.0562,4381.1,4381.0,1.67]
[1757345547776,1.6629,4381.1,4381.0,1.67]
[1757345547971,1.6629,4381.1,4381.0,1.026]
[1757345549182,1.6629,4381.1,4381.0,1.2744]
[1757345549387,1.6629,4381.1,4381.0,1.026]
[1757345549679,1.6629,4381.1,4381.0,0.6091]
[1757345550080,1.6629,4381.1,4381.0,0.64043616]
[1757345550282,1.6629,4381.1,4381.0,0.03133616]
[1757345553979,1.6629,4381.1,4380.0,0.2484]
[1757345553980,0.8192,4380.2,4380.1,0.6091]
[1757345554183,0.8192,4380.2,4380.1,1.4216]
[1757345556377,0.4051,4380.2,4380.1,1.4216]
[1757345558382,1.41,4380.2,4380.1,1.4216]
[1757345558577,0.8124,4380.2,4380.1,1.4216]
[1757345560885,0.237,4380.3,4380.1,1.4216]
[1757345561184,0.237,4380.3,4380.2,1.4449]
[1757345561387,1.22666444,4382.1,4380.5,0.2462]
[1757345561388,3.2078,4381.1,4380.5,0.2462]
[1757345561574,3.8394,4381.1,4381.0,1.6911]
[1757345561888,4.96926928,4381.1,4381.0,1.6911]
[1757345562083,4.437,4381.1,4381.0,1.6911]
[1757345562391,4.8443,4381.1,4381.0,1.4449]
[1757345562780,3.2078,4381.6,4381.0,5.0691]
[1757345563088,3.6024,4382.2,4382.1,0.8229]
[1757345563386,3.8394,4382.2,4382.1,1.4449]
[1757345563887,3.2078,4382.7,4382.2,0.622]
[1757345564087,0.53191396,4382.6,4382.5,1.6911]
[1757345564288,3.2078,4382.7,4382.6,0.622]
[1757345564478,3.2078,4382.7,4382.6,1.4449]
[1757345565285,0.2428,4384.0,4382.6,1.4449]
[1757345565286,3.8394,4383.4,4383.3,1.4449]
[1757345565684,1.6365,4383.4,4383.3,1.4449]
[1757345566184,4.8443,4383.4,4383.3,1.4449]
[1757345566781,4.8443,4383.4,4383.3,0.8229]
[1757345568790,1.6365,4383.4,4383.3,1.4449]
[1757345569284,4.8443,4383.4,4383.3,1.4449]
[1757345569983,4.8443,4383.4,4383.0,0.622]
[1757345570291,4.8443,4383.4,4382.6,0.622]
[1757345571898,1.3995,4382.3,4382.2,1.6809]
[1757345572191,1.3995,4382.3,4382.2,1.4449]
[1757345572398,4.6073,4382.3,4382.2,1.4449]
[1757345572692,4.6073,4382.3,4381.6,0.622]
[1757345572886,0.9922,4381.7,4381.6,1.4449]
[1757345573088,1.3995,4381.7,4381.6,1.4449]
[1757345573790,0.3946,4380.9,4380.8,1.2796]
[1757345574091,0.3946,4380.9,4380.8,1.4449]
[1757345574691,0.8019,4380.9,4380.8,1.4449]
[1757345575186,3.2078,4381.1,4380.8,0.8229]
[1757345575385,3.4438,4381.8,4381.6,0.622]
[1757345575586,3.2078,4381.8,4381.7,1.4449]
[1757345575797,0.236,4382.4,4382.3,0.4013]
[1757345575989,3.4438,4382.6,4382.4,0.622]
[1757345576295,3.2078,4382.6,4382.5,1.6911]
[1757345577193,4.6073,4382.6,4382.5,1.4449]
[1757345577489,4.6073,4382.6,4381.7,1.6809]
[1757345577490,0.3946,4381.8,4381.7,1.6809]
[1757345577892,0.2428,4382.5,4381.7,1.0589]
[1757345578091,3.2078,4383.1,4383.0,0.8229]
[1757345578288,3.2078,4383.6,4383.4,1.4449]
[1757345578496,3.2078,4383.6,4383.5,1.6911]
[1757345581695,3.6024,4383.6,4383.5,1.6911]
[1757345582098,3.2078,4383.6,4383.5,1.6911]
[1757345582293,0.2428,4384.5,4383.5,1.6911]
[1757345582294,3.8054,4384.3,4383.5,5.0691]
[1757345582499,3.6024,4384.3,4384.2,1.4449]
[1757345582793,1.3995,4384.3,4384.2,1.4449]
[1757345583802,1.3995,4384.3,4384.2,0.4216]
[1757345584097,1.6355,4384.3,4383.6,0.236]
[1757345584292,1.6355,4384.3,4384.2,0.4216]
[1757345587497,1.6355,4384.3,4383.9,0.622]
[1757345587700,1.6355,4384.3,4383.3,0.6145]
[1757345587701,0.7868,4383.4,4383.3,0.6145]
[1757345587902,1.3674,4383.4,4383.3,1.5707]
[1757345588499,0.4693,4384.0,4383.5,0.2303]
[1757345588704,1.3674,4383.6,4383.5,1.3347]
[1757345589196,3.2078,4383.9,4383.5,1.565]
[1757345589402,3.2078,4383.9,4383.8,0.7558]
[1757345589596,3.5858,4383.9,4383.8,1.3347]
[1757345589998,3.2078,4383.9,4383.8,1.3347]
[1757345590304,3.5858,4383.9,4383.8,1.3347]
[1757345590796,4.5752,4383.9,4383.8,1.3347]
[1757345590999,3.9946,4383.9,4383.8,1.3347]
[1757345591399,0.7868,4383.9,4383.8,1.3347]
[1757345591703,0.378,4383.9,4383.8,1.3347]
[1757345592395,0.378,4383.9,4383.8,1.35337236]
[1757345593402,0.5806,4384.2,4383.9,0.5789]
[1757345593708,1.3674,4384.2,4384.1,1.3347]
[1757345594397,1.3674,4384.2,4384.1,1.35337236]
[1757345600804,1.3674,4384.2,4384.1,0.01867236]
[1757345601007,1.6034,4384.2,4384.1,0.01867236]
[1757345602297,1.6034,4384.2,4384.1,0.39717236]
[1757345602907,1.6034,4384.2,4384.1,0.01867236]
[1757345606307,2.13240102,4384.2,4384.1,0.01867236]
[1757345607295,1.89640102,4384.2,4384.1,0.01867236]
[1757345607500,1.3674,4384.2,4384.1,0.39717236]
[1757345607696,1.3674,4384.2,4384.1,0.01867236]
[1757345608210,1.89738626,4384.2,4384.1,0.01867236]
[1757345611904,0.5806,4384.1,4382.7,0.5789]
[1757345612103,0.378,4381.9,4381.8,0.9574]
[1757345612312,0.5806,4382.4,4381.9,0.5789]
[1757345612502,1.3674,4382.4,4382.3,0.7558]
[1757345612808,1.3674,4382.4,4382.3,1.3347]
[1757345613606,1.3674,4382.4,4381.9,0.5789]
[1757345613808,0.5806,4382.3,4381.8,0.5789]
[1757345614000,0.2333,4382.5,4381.8,1.3347]
[1757345614001,0.9586,4381.9,4381.8,1.3347]
[1757345614208,0.378,4382.0,4381.9,0.5789]
[1757345614404,1.3674,4382.0,4381.9,1.3347]
[1757345616514,0.378,4382.0,4381.9,1.3347]
[1757345617014,0.948,4382.0,4381.9,1.3347]
[1757345617310,1.3284,4382.0,4381.9,1.3347]
[1757345618308,0.7749,4381.8,4381.7,3.2078]
[1757345618509,0.7749,4381.0,4380.9,1.3756]
[1757345618812,1.5797,4381.0,4380.9,0.8024]
[1757345619207,1.5797,4381.0,4380.9,0.3965]
[1757345619516,1.3449,4381.0,4380.9,1.3756]
[1757345620312,1.5797,4381.0,4380.9,0.3965]
[1757345620508,1.5797,4381.0,4380.9,0.9697]
[1757345620708,1.5797,4381.0,4380.9,0.3965]
[1757345620909,1.5797,4381.0,4380.5,0.8035]
[1757345621211,1.3449,4380.9,4380.8,0.9697]
[1757345621411,1.3449,4380.9,4380.8,1.3756]
[1757345623716,1.3449,4380.9,4380.4,0.5732]
[1757345624010,0.7749,4380.8,4380.7,0.3965]
[1757345624212,1.3449,4380.8,4380.7,0.3965]
[1757345624418,1.3449,4380.8,4380.7,1.3756]
[1757345625405,0.2348,4381.0,4380.3,3.2078]
[1757345625610,1.3449,4380.4,4380.3,0.8024]
[1757345625810,0.9645,4380.4,4380.3,1.3756]
[1757345626218,3.2078,4380.6,4380.5,0.2457]
[1757345626418,3.2078,4380.6,4380.5,1.6213]
[1757345627214,0.3945,4380.6,4380.5,1.0481]
[1757345627414,0.3945,4380.6,4380.5,1.6213]
[1757345628118,0.9645,4380.6,4380.5,1.6213]
[1757345628713,1.3449,4380.6,4380.2,3.2078]
[1757345629020,1.3449,4380.3,4380.2,1.6116]
[1757345631117,0.1141,4380.9,4380.2,1.0384]
[1757345631314,0.7749,4380.8,4380.7,0.3965]
[1757345631514,0.7749,4380.8,4380.0,0.8189]
[1757345631715,0.3945,4380.1,4380.0,1.6213]
[1757345632114,0.57,4380.4,4380.1,0.5732]
[1757345632315,0.9645,4380.4,4380.3,1.3756]
[1757345632817,1.3449,4380.4,4380.3,1.3756]
[1757345636421,0.3945,4380.4,4380.3,1.3756]
[1757345636625,0.6841,4380.9,4380.4,0.5732]
[1757345636818,1.0786,4380.9,4380.8,0.8024]
[1757345637015,1.459,4380.9,4380.8,1.3756]
[1757345637522,1.459,4380.9,4380.8,0.3965]
[1757345637719,1.459,4380.9,4380.1,0.5732]
[1757345638726,1.459,4380.9,4380.8,1.3756]
[1757345638918,0.1141,4380.9,4380.8,1.3756]
[1757345640121,0.1141,4380.9,4380.8,4.5834]
[1757345641923,0.1141,4380.9,4380.8,4.8194]
[1757345646027,3.2078,4381.8,4381.5,0.2226]
[1757345646331,0.9625,4381.8,4381.7,0.7833]
[1757345646724,4.1703,4382.3,4382.2,0.7833]
[1757345646926,5.07545068,4382.3,4382.2,1.3855]
[1757345647320,4.5439,4382.3,4382.2,1.3855]
[1757345647931,4.5439,4382.3,4381.6,0.236]
[1757345648133,4.5439,4382.3,4381.7,0.6022]
[1757345650019,0.2366,4382.0,4381.6,0.236]
[1757345650227,1.3361,4381.7,4381.6,0.6279]
[1757345650527,1.3361,4381.1,4381.0,0.7833]
[1757345651233,1.3361,4381.1,4381.0,1.3855]
[1757345652928,0.2366,4381.5,4380.8,3.2078]
[1757345652929,0.7587,4380.9,4380.8,3.2078]
[1757345653132,0.7587,4380.9,4380.6,0.6022]
[1757345653133,1.3361,4380.8,4380.7,0.6279]
[1757345653431,1.3361,4380.8,4380.7,0.3919]
[1757345653829,1.3361,4380.8,4380.5,0.236]
[1757345655432,0.7587,4380.8,4380.3,3.2078]
[1757345655637,1.5727,4380.5,4380.4,0.9941]
[1757345655833,0.5774,4380.4,4380.3,3.2078]
[1757345656030,1.3361,4380.4,4380.3,3.2078]
[1757345656227,1.3361,4380.4,4380.3,3.5997]
[1757345656936,1.3361,4380.4,4380.3,4.2019]
[1757345657338,1.3361,4380.4,4380.3,3.5997]
[1757345657536,1.3361,4380.4,4380.1,0.235]
[1757345658127,1.3361,4380.4,4380.0,0.6022]
[1757345658332,1.3361,4380.4,4380.1,0.235]
[1757345658927,1.3361,4380.4,4380.0,0.6022]
[1757345659135,0.5774,4380.3,4379.8,0.235]
[1757345659329,3.2078,4380.8,4380.3,0.6022]
[1757345659534,3.2078,4380.8,4380.1,3.2078]
[1757345659535,3.2078,4380.8,4380.7,1.3855]
[1757345660737,4.5439,4380.8,4380.7,0.3919]
[1757345661336,4.5439,4380.8,4380.7,0.9941]
[1757345661538,4.5439,4380.8,4380.7,1.3855]
[1757345661744,4.5439,4380.8,4380.6,0.235]
[1757345662246,4.5439,4380.8,4380.7,0.9941]
[1757345662746,1.3361,4380.8,4380.7,0.9941]
[1757345663646,1.3361,4380.8,4380.7,1.3855]
[1757345663848,0.3851,4380.8,4380.7,1.3855]
[1757345664146,0.3851,4380.9,4380.8,1.3855]
[1757345664349,1.3361,4380.9,4380.8,0.7833]
[1757345664744,1.3361,4380.9,4380.8,0.3919]
[1757345665150,1.3361,4380.9,4380.8,0.9941]
[1757345665647,1.3361,4380.9,4380.4,0.235]
[1757345665844,0.7587,4380.9,4380.4,0.8372]
[1757345666145,1.3361,4380.5,4380.4,1.0183]
[1757345666547,1.3361,4380.5,4380.4,1.6205]
[1757345666747,1.5727,4380.5,4380.4,0.6269]
[1757345666948,1.5727,4380.5,4380.1,3.2078]
[1757345667142,0.7587,4380.3,4380.2,0.235]
[1757345667342,1.3361,4380.3,4380.2,0.6269]
[1757345667851,1.3361,4380.3,4380.2,1.2291]
[1757345668146,0.9625,4380.6,4380.5,0.7833]
[1757345668349,0.9625,4380.6,4380.5,1.3855]
[1757345668648,1.3361,4380.6,4380.5,1.3855]
[1757345669057,0.3851,4380.6,4380.5,1.3855]
[1757345669248,4.2015,4381.3,4381.2,0.9941]
[1757345669543,4.2015,4381.3,4380.7,0.6022]
[1757345669752,1.3361,4381.2,4381.1,0.3919]
[1757345670046,1.3361,4381.2,4380.5,0.2226]
[1757345670350,1.3361,4381.2,4380.6,0.6022]
[1757345670543,1.3361,4381.2,4381.1,0.3919]
[1757345670743,1.3361,4381.2,4381.1,0.7833]
[1757345670944,1.3361,4381.2,4381.1,1.3855]
[1757345671145,1.3361,4381.2,4381.1,0.3919]
[1757345671346,0.2366,4381.0,4380.6,3.2078]
[1757345671648,1.3361,4380.7,4380.6,3.9911]
[1757345671844,0.5774,4381.2,4380.6,3.9911]
[1757345672047,0.9625,4381.2,4381.1,0.7833]
[1757345672349,0.9625,4381.2,4381.1,1.3855]
[1757345672752,1.3361,4381.2,4381.1,1.3855]
[1757345673152,1.3361,4381.2,4381.1,0.7833]
[1757345673853,1.3361,4381.2,4381.1,1.3855]
[1757345674848,1.3361,4381.2,4380.7,0.235]
[1757345674849,0.5774,4381.1,4380.7,0.8372]
[1757345675052,0.5774,4380.7,4380.5,0.235]
[1757345675255,1.3361,4380.6,4380.5,0.6269]
[1757345675452,1.3361,4380.6,4380.5,0.935]
[1757345675654,1.3361,4380.6,4380.5,1.3175]
[1757345676159,1.3361,4380.6,4380.5,0.3919]
[1757345676345,0.7218,4380.2,4380.1,0.923]
[1757345676547,1.3198,4380.2,4380.1,1.5405]
[1757345676851,1.3198,4380.2,4380.1,0.6149]
[1757345677254,1.3198,4380.2,4380.1,1.3055]
[1757345678359,0.2241,4380.0,4379.9,3.4428]
[1757345678560,0.9459,4380.0,4379.9,3.8227]
[1757345678758,1.5439,4380.0,4379.9,4.7483]
[1757345679359,1.5439,4380.0,4379.9,3.2078]
[1757345679659,1.5439,4380.0,4379.9,3.5877]
[1757345680168,1.5439,4380.0,4379.9,4.1308]
[1757345680860,1.3198,4380.0,4379.9,4.5133]
[1757345681054,1.5363179,4380.0,4379.9,4.5133]
[1757345681655,1.7604179,4380.0,4379.9,3.5877]
[1757345681855,1.7604179,4380.0,4379.4,3.2078]
[1757345682160,1.5439,4379.5,4379.4,3.8227]
[1757345682361,1.5439,4379.5,4379.4,4.7483]
[1757345683164,0.2165179,4379.5,4379.4,4.7483]
[1757345686965,0.5792179,4379.5,4379.4,4.7483]
[1757345687360,1.1772179,4379.5,4379.4,4.7483]
[1757345687561,0.5792179,4379.5,4379.4,4.7483]
[1757345687964,0.5792179,4379.5,4379.4,0.3799]
[1757345687965,1.7604179,4379.5,4379.4,0.3799]
[1757345688159,1.7604179,4379.5,4379.4,1.3055]
[1757345688767,1.5363179,4379.5,4379.4,1.3055]
[1757345688968,0.5792179,4379.5,4379.4,1.3055]
[1757345689364,1.1772179,4379.5,4379.4,1.3055]
[1757345689759,1.5363179,4379.5,4379.4,1.3055]
[1757345693362,0.2165179,4379.5,4379.4,1.3055]
[1757345693664,0.2165179,4379.5,4379.4,4.5133]
[1757345694270,0.2165179,4379.5,4379.4,8.74164]
[1757345694567,0.7218,4379.8,4379.4,3.4428]
[1757345694762,0.7218,4379.5,4379.4,4.5133]
[1757345694967,1.3198,4379.5,4379.4,4.7483]
[1757345695181,1.3198,4379.5,4379.4,5.0396432]
[1757345695470,0.3627,4379.5,4379.4,5.0396432]
[1757345695666,0.2241,4380.0,4379.4,4.4965432]
[1757345695866,1.5439,4380.0,4379.9,0.3799]
[1757345696068,1.5439,4380.0,4379.9,1.0537432]
[1757345696469,1.3198,4380.0,4379.9,1.5968432]
[1757345697770,1.5439,4380.0,4379.9,1.0537432]
[1757345698176,1.5439,4380.0,4379.9,0.6712432]
[1757345698474,1.5439,4380.0,4379.9,1.0537432]
[1757345698676,1.5439,4380.0,4379.9,0.6712432]
[1757345698874,1.5439,4380.0,4379.9,0.2913432]
[1757345700278,1.5439,4380.0,4379.9,0.6712432]
[1757345700478,1.5439,4380.0,4379.9,1.0537432]
[1757345701874,1.5439,4380.0,4379.9,0.6712432]
[1757345703383,3.2078,4380.3,4379.9,0.2913432]
[1757345703575,0.22831,4380.2,4380.0,0.2913432]
[1757345703776,0.22831,4380.2,4379.4,3.4428]
[1757345703777,3.2078,4380.3,4380.1,0.2913432]
[1757345703976,3.2078,4380.3,4380.2,0.2913432]
[1757345705376,0.235,4380.7,4380.2,0.2913432]
[1757345705584,0.53182892,4380.6,4380.3,0.2913432]
[1757345705779,0.53182892,4380.5,4380.4,0.2913432]
[1757345707773,3.2078,4381.3,4380.4,0.2913432]
[1757345707977,0.53200441,4381.2,4380.5,0.2913432]
[1757345708183,0.53200441,4381.1,4380.6,0.2913432]
[1757345708383,0.9026,4380.8,4380.7,1.0299432]
[1757345709685,0.5399,4381.2,4380.7,1.0299432]
[1757345709882,0.9093,4381.6,4381.5,0.7411]
[1757345710083,0.9093,4381.6,4381.5,1.0324432]
[1757345710084,1.81603872,4381.6,4381.5,1.0324432]
[1757345710475,3.2078,4381.8,4381.5,1.2465432]
[1757345710676,3.2078,4382.3,4381.7,0.7411]
[1757345710882,0.5399,4382.9,4382.2,0.7411]
[1757345711079,1.2842,4382.9,4382.8,0.7411]
[1757345711285,1.2842,4382.9,4382.8,1.0324432]
[1757345712286,1.2842,4382.9,4382.8,0.7411]
[1757345712488,1.2842,4382.9,4382.8,0.3824]
[1757345712792,1.2842,4382.9,4382.8,0.29365233]
[1757345713286,3.2078,4383.1,4382.8,1.03475233]
[1757345713584,0.9093,4383.2,4383.1,0.7411]
[1757345713777,1.2842,4383.2,4383.1,0.7411]
[1757345716386,3.2078,4383.6,4383.1,0.7411]
[1757345716387,0.7656,4384.0,4383.5,0.2141]
[1757345716581,0.5399,4384.5,4384.4,0.7411]
[1757345716786,0.2257,4385.0,4384.4,3.9489]
[1757345717291,0.3694,4384.5,4384.4,3.9489]
[1757345717490,0.9093,4384.5,4384.4,3.9489]
[1757345718290,1.5099,4384.5,4384.4,3.9489]
[1757345718884,1.5099,4384.5,4384.4,0.7411]
[1757345719386,1.5099,4384.5,4384.1,0.235]
[1757345719387,0.2257,4384.0,4383.9,3.5902]
[1757345719585,1.5099,4384.0,4383.9,3.9489]
[1757345719984,0.7443,4383.0,4382.9,3.5902]
[1757345720190,1.2842,4383.0,4382.9,0.7411]
[1757345722494,1.5099,4383.0,4382.9,0.7411]
[1757345725988,1.2842,4383.0,4382.9,0.7411]
[1757345726188,0.9093,4383.0,4382.9,0.7411]
[1757345726388,0.3694,4383.0,4382.9,0.7411]
[1757345727289,0.9093,4383.0,4382.9,0.7411]
[1757345728092,0.5399,4383.3,4382.9,0.7411]
[1757345728294,0.2257,4383.5,4382.9,0.7411]
[1757345728483,0.5399,4383.4,4382.9,0.7411]
[1757345728894,0.3694,4383.0,4382.9,0.7411]
[1757345729095,1.2842,4383.0,4382.9,0.7411]
[1757345729299,1.5099,4383.0,4382.9,0.7411]
[1757345729595,1.2842,4383.0,4382.9,0.7411]
[1757345730295,1.5099,4383.0,4382.9,0.7411]
[1757345732089,1.2842,4383.0,4382.9,0.7411]
[1757345733593,0.9093,4383.0,4382.9,0.7411]
[1757345734387,0.9093,4383.0,4382.9,1.03371737]
[1757345734997,1.2842,4383.0,4382.9,1.03371737]
[1757345735193,1.5099,4383.0,4382.9,1.03371737]
[1757345735497,1.5099,4383.0,4382.9,0.29261737]
[1757345735695,1.5099,4383.0,4382.2,3.2078]
[1757345735696,0.216,4382.5,4382.2,3.2078]
[1757345735891,0.7403,4381.8,4381.7,3.7916]
[1757345736090,1.2695,4381.8,4381.7,4.3537]
[1757345736296,1.2695,4381.8,4381.7,4.7306]
[1757345736800,1.2695,4381.8,4381.0,3.4219]
[1757345736997,0.7403,4381.1,4381.0,3.5566]
[1757345737191,1.2695,4381.1,4381.0,3.5566]
[1757345737386,0.9563,4381.0,4380.9,0.235]
[1757345737587,1.4855,4381.0,4380.9,0.235]
[1757345738697,1.4855,4381.0,4380.1,0.5621]
[1757345738698,0.5292,4380.9,4380.1,0.5621]
[1757345738896,1.2695,4380.2,4379.7,0.235]
[1757345739603,1.2695,4379.8,4379.7,0.5838]
[1757345740901,1.2695,4379.8,4379.7,1.5228]
[1757345741796,1.2695,4379.8,4379.7,0.5838]
[1757345741998,1.2695,4379.8,4379.7,1.1459]
[1757345743503,1.2695,4379.8,4379.7,1.5228]
[1757345744105,1.2695,4379.8,4379.7,1.83292058]
[1757345744405,0.3575,4379.8,4379.7,1.83292058]
[1757345744707,0.8867,4380.1,4380.0,1.2878]
[1757345744897,0.8867,4380.1,4380.0,1.59792058]
[1757345744898,1.2695,4380.1,4380.0,1.59792058]
[1757345746300,1.2695,4380.1,4380.0,1.2878]
[1757345747807,0.216,4380.0,4379.7,0.7971]
[1757345748008,1.2695,4379.9,4379.8,1.59749039]
[1757345749003,1.2695,4379.9,4379.8,1.22059039]
[1757345749215,1.2695,4379.9,4379.8,0.30969039]
[1757345750608,1.2695,4379.9,4379.7,0.235]
[1757345751107,0.216,4380.0,4379.1,0.5621]
[1757345751108,1.2695,4379.2,4379.1,0.3488]
[1757345751313,1.2695,4379.2,4379.0,3.2078]
[1757345751314,0.7403,4379.2,4379.0,3.2078]
[1757345751609,0.7403,4378.5,4378.4,3.5566]
[1757345751804,1.2695,4378.5,4378.4,4.42867318]
[1757345752206,1.2695,4378.5,4378.4,4.80557318]
[1757345753303,1.2695,4378.5,4378.4,1.59777318]